fUST/lending_fUST_20240702
["ID","MTS","AMOUNT","RATE_DAILY","PERIOD"]
[330894738,1719926503341,210.73530334,0.00014999,2]
[330894739,1719926503376,369.38118446,0.00014999,2]
[330894740,1719926511951,843.40945007,0.00014999,2]
[330894742,1719926513221,373.67425734,0.00014999,2]
[330894743,1719926516940,251.70550996,0.00014999,2]
[330894744,1719926518589,293.87727024,0.00014999,2]
[330894745,1719926521564,191.7722736,0.00014999,2]
[330894746,1719926524148,182.08872218,0.00014999,2]
[330894748,1719926532903,191.79918218,0.00014999,2]
[330894749,1719926534876,1122.1124014,0.00014999,2]
[330894751,1719926544277,232.30991908,0.00014999,2]
[330894752,1719926547222,7087.95820415,0.00014998,2]
[330894753,1719926548148,3108.34007968,0.00014999,2]
[330894755,1719926561787,157.94776583,0.00014999,2]
[330894756,1719926562492,155.08929671,0.00014999,2]
[330894757,1719926563884,155.15799191,0.00014999,2]
[330894758,1719926566545,329.25970919,0.00014999,2]
[330894759,1719926584101,2131.93815612,0.00014999,2]
[330894761,1719926618414,521.7933272,0.00014999,2]
[330894762,1719926619285,200.36376611,0.00014999,2]
[330894763,1719926629378,182.904275,0.00014999,2]
[330894766,1719926646677,193.18071048,0.00014999,2]
[330894767,1719926655884,154.86836189,0.00014999,2]
[330894768,1719926656649,271.32677426,0.00014999,2]
[330894769,1719926685880,154.86836189,0.00014999,2]
[330894770,1719926699171,389.81234736,0.00014999,2]
[330894771,1719926700104,200.79020594,0.00014999,2]
[330894772,1719926712463,842.30353629,0.00014999,2]
[330894773,1719926716007,154.86836189,0.00014999,2]
[330894774,1719926718681,267.79356134,0.00014999,2]
[330894775,1719926725036,154.86836189,0.00014999,2]
[330894776,1719926738998,195.47966853,0.00014999,2]
[330894777,1719926761528,1000.0,0.00015,6]
[330894779,1719926774268,1000.0,0.00015,7]
[330894780,1719926774314,3000.0,0.00014369,2]
[330894783,1719926849911,154.86836189,0.00014999,2]
[330894784,1719926851011,172.73953549,0.00014999,2]
[330894786,1719926857609,307.62199819,0.00014999,2]
[330894787,1719926865564,154.8992969,0.00014999,2]
[330894789,1719926943825,-210.67896885,0.00015014,2]
[330894793,1719926998904,155.56393788,0.00014999,2]
[330894874,1719927038026,-41.43993414,0.00015014,2]
[330894875,1719927038036,-961.14418666,0.00015178,2]
[330894876,1719927038877,-4326.78565428,0.00015178,2]
[330894877,1719927038888,-150.0,0.00015233,2]
[330894878,1719927038898,-170.58452164,0.0001533,2]
[330894879,1719927038908,-170.58452163,0.0001533,2]
[330894880,1719927038917,-170.58452163,0.00015331,2]
[330894881,1719927038928,-170.58452163,0.00015331,2]
[330894882,1719927038938,-300.0,0.00015428,2]
[330894883,1719927038948,-300.0,0.00015428,2]
[330894884,1719927038958,-59.02303407,0.00015428,2]
[330895248,1719927042886,-440.97696593,0.00015428,2]
[330895250,1719927042897,-500.0,0.00015428,2]
[330895252,1719927042906,-864.45,0.00015429,2]
[330895254,1719927042916,-500.0,0.00015429,2]
[330895256,1719927042926,-500.0,0.00015429,2]
[330895258,1719927042936,-453.47861453,0.00015429,2]
[330895272,1719927043040,-46.52138547,0.00015429,2]
[330895274,1719927043049,-287.40506456,0.00015429,2]
[330895277,1719927043061,-212.59493544,0.00015429,2]
[330895279,1719927043071,-500.0,0.00015429,2]
[330895281,1719927043080,-1329.91,0.00015429,2]
[330895283,1719927043089,-1381.83,0.00015429,2]
[330895285,1719927043098,-500.0,0.00015429,2]
[330895287,1719927043107,-795.01,0.00015429,2]
[330895289,1719927043116,-500.0,0.00015429,2]
[330895291,1719927043125,-775.46,0.00015429,2]
[330895293,1719927043135,-794.16,0.00015429,2]
[330895294,1719927043144,-2126.85,0.00015429,2]
[330895296,1719927043153,-301.04196976,0.00015429,2]
[330895298,1719927043162,-3687.57,0.00015429,2]
[330895300,1719927043171,-955.57283609,0.00015429,2]
[330895826,1719927048372,-171.11912421,0.00015329,2]
[330895828,1719927048382,-13305.82716391,0.00015429,2]
[330895830,1719927048393,-500.0,0.00015429,2]
[330895832,1719927048402,-1950.36,0.00015429,2]
[330895835,1719927048411,-500.0,0.00015429,2]
[330895837,1719927048420,-3173.96,0.00015429,2]
[330895838,1719927048429,-500.0,0.00015429,2]
[330895841,1719927048439,-500.0,0.00015429,2]
[330895843,1719927048448,-704.65,0.00015429,2]
[330895844,1719927048458,-408.04675374,0.00015429,2]
[330895846,1719927048466,-275.78131549,0.00015429,2]
[330897682,1719927614822,-60.07514085,0.000234,31]
[330897683,1719927614870,-93.52485915,0.000234,31]
[330897684,1719927614880,-60.07514085,0.00024,30]
[330897741,1719928232072,-164.1553246,0.00015279,2]
[330897742,1719928232082,-819.86292838,0.00015322,2]
[330897756,1719928239022,-979.22765915,0.00015322,2]
[330897866,1719928243761,-687.45865961,0.00015322,2]
[330897869,1719928243771,-300.0,0.00015325,2]
[330897872,1719928243780,-4935.72691777,0.00015326,2]
[330897875,1719928243789,-4935.72691773,0.00015327,2]
[330897878,1719928243798,-4935.72691773,0.00015328,2]
[330897881,1719928243808,-3879.25660767,0.00015328,2]
[330897985,1719928250337,273.37336231,9.9e-05,2]
[330897986,1719928259727,273.37336231,9.9e-05,2]
[330897987,1719928268364,273.37336231,9.9e-05,2]
[330897988,1719928276368,273.37336231,9.9e-05,2]
[330897989,1719928280306,500.0,0.00023,120]
[330897990,1719928281063,537.35,0.00023,120]
[330897991,1719928285668,273.37336231,9.9e-05,2]
[330897992,1719928294806,273.37336231,9.9e-05,2]
[330897993,1719928305708,273.37336231,9.9e-05,2]
[330897994,1719928315078,273.37336231,9.9e-05,2]
[330897995,1719928324918,273.37336231,9.9e-05,2]
[330897996,1719928334380,273.37336231,9.9e-05,2]
[330897997,1719928344181,273.37336231,9.9e-05,2]
[330897998,1719928353220,273.37336231,9.9e-05,2]
[330897999,1719928362273,273.37336231,9.9e-05,2]
[330898000,1719928371027,273.37336231,9.9e-05,2]
[330898001,1719928371086,16234.89449455,9.9e-05,2]
[330898002,1719928373760,1151.01337542,9.9e-05,2]
[330898003,1719928381129,273.37336231,9.9e-05,2]
[330898004,1719928389502,401.60278834,9.9e-05,2]
[330898005,1719928391770,273.37336231,9.9e-05,2]
[330898006,1719928401899,273.37336231,9.9e-05,2]
[330898007,1719928410594,2957.67661084,0.00012,2]
[330898008,1719928411472,273.37336231,9.9e-05,2]
[330898009,1719928420490,273.37336231,9.9e-05,2]
[330898010,1719928430031,273.37336231,9.9e-05,2]
[330898011,1719928435002,455.5898504,0.00014483,2]
[330898012,1719928441744,273.37336231,9.9e-05,2]
[330898013,1719928445305,155.57517394,0.00012,2]
[330898018,1719928456796,273.37336231,9.9e-05,2]
[330898019,1719928463312,1588.6733583,0.00014368,2]
[330898020,1719928465920,273.37336231,9.9e-05,2]
[330898021,1719928475176,273.37336231,9.9e-05,2]
[330898022,1719928484263,273.37336231,9.9e-05,2]
[330898023,1719928493954,273.37336231,9.9e-05,2]
[330898024,1719928504566,273.37336231,9.9e-05,2]
[330898025,1719928505198,5592.03,0.00025,120]
[330898026,1719928514330,273.37336231,9.9e-05,2]
[330898027,1719928523771,273.37336231,9.9e-05,2]
[330898028,1719928532871,207.89902475,9.9e-05,2]
[330898029,1719928538669,492.19766955,0.00014999,2]
[330898034,1719928615796,1330.44466547,0.00014999,2]
[330898036,1719928660684,492.19766955,0.00014999,2]
[330898038,1719928668944,22708.19964801,0.00014363,2]
[330898039,1719928668972,2191.80035199,0.00014363,2]
[330898043,1719928691510,17283.38,0.00025,120]
[330898044,1719928694912,11131.22393028,0.00014998,2]
[330898045,1719928695177,500.0,0.00015,2]
[330898047,1719928708915,527.86025826,0.00014999,2]
[330898048,1719928709835,374.40487559,0.00014999,2]
[330898050,1719928717982,155.40856369,0.00014999,2]
[330898051,1719928719031,20000.0,0.00025,120]
[330898052,1719928728981,156.51254805,0.00014999,2]
[330898053,1719928755439,587.29779472,0.00014999,2]
[330898054,1719928789777,4590.70504908,0.00014999,2]
[330898055,1719928798994,529.11017009,0.00014999,2]
[330898056,1719928810706,169.2995757,0.00014999,2]
[330898060,1719928973641,185.7651066,0.00014999,2]
[330898064,1719929016973,5287.92984094,0.00014991,2]
[330898065,1719929019716,150.0,0.00014998,2]
[330898069,1719929048465,195.63878333,0.00014999,2]
[330898072,1719929067171,4709.85812385,0.00014999,2]
[330898073,1719929067817,2095.24835011,0.00014999,2]
[330898074,1719929086674,270.44738619,0.00014999,2]
[330898075,1719929089662,1915.84372673,0.00014999,2]
[330898076,1719929093262,2129.54772975,0.00014999,2]
[330898077,1719929105879,1018.67361308,0.00015,2]
[330898078,1719929109335,934.12399024,0.00014999,2]
[330898079,1719929114816,1516.58842086,0.00015,2]
[330898080,1719929119057,1314.34115228,0.00014999,2]
[330898081,1719929144693,1140.95097749,0.00014999,2]
[330898082,1719929151792,154.88383712,0.00015,2]
[330898083,1719929162238,1500.0,0.00014999,2]
[330898084,1719929172513,1119.10590743,0.00014999,2]
[330898085,1719929175156,934.2373823,0.00014999,2]
[330898086,1719929185232,509.91756708,0.00014999,2]
[330898087,1719929194182,309.67484142,0.00015,2]
[330898088,1719929198186,1181.08686392,0.00014999,2]
[330898089,1719929198217,7954.689162,0.00014999,2]
[330898091,1719929202811,801.52669703,0.00014999,2]
[330898093,1719929212719,843.57617703,0.00014999,2]
[330898094,1719929213378,24900.0,0.00014363,2]
[330898095,1719929218331,1044.99950462,0.00014999,2]
[330898096,1719929221537,233.89440832,0.00014999,2]
[330898097,1719929223889,1059.16103989,0.00014999,2]
[330898098,1719929224867,688.21117984,0.00014999,2]
[330898099,1719929231675,474.20415605,0.00014999,2]
[330898100,1719929242936,159.19078752,0.00014999,2]
[330898101,1719929264736,176.37522293,0.00014999,2]
[330898102,1719929270909,751.41110866,0.00014999,2]
[330898103,1719929274658,309.67484142,0.00014999,2]
[330898104,1719929275390,1099.39745741,0.00015,2]
[330898105,1719929278058,597.79480567,0.00014999,2]
[330898107,1719929283386,934.12399024,0.00014999,2]
[330898109,1719929300063,531.82036901,0.00014999,2]
[330898110,1719929300419,509.91756708,0.00014999,2]
[330898111,1719929314184,309.67484142,0.00014999,2]
[330898112,1719929318513,1182.57849715,0.00014999,2]
[330898113,1719929320754,1500.0,0.00014999,2]
[330898114,1719929331878,724.58678945,0.00014999,2]
[330898115,1719929359453,2284.50826418,0.00014988,2]
[330898120,1719929393012,-564.50044756,0.00015088,2]
[330898121,1719929393078,-564.50044756,0.00015088,2]
[330898122,1719929393136,-553.43442568,0.00015088,2]
[330898123,1719929414462,789.60606317,0.00014999,2]
[330898124,1719929418354,651.59035174,0.00015,2]
[330898173,1719929432521,-155.08846328,0.00014999,2]
[330898175,1719929432532,-509.91756708,0.00014999,2]
[330898177,1719929432544,-903.40964826,0.00015,2]
[330898179,1719929432555,-1267.2878478,0.00015088,2]
[330898199,1719929432711,-5208.66458718,0.00015088,2]
[330898205,1719929440043,-1425.98029695,0.00015088,2]
[330898207,1719929440053,-300.0,0.00015321,2]
[330898209,1719929440064,-1198.43944559,0.00015322,2]
[330898211,1719929440074,-157.6471524,0.00015322,2]
[330898213,1719929440084,-1198.43944555,0.00015323,2]
[330898215,1719929440094,-1198.43944555,0.00015324,2]
[330898217,1719929440104,-1198.43944555,0.00015324,2]
[330898219,1719929440114,-1198.43944555,0.00015325,2]
[330898221,1719929440124,-2000.0,0.000154,2]
[330898223,1719929440134,-150.0,0.00015409,2]
[330898225,1719929440144,-500.0,0.00015421,2]
[330898227,1719929440154,-4762.85,0.00015422,2]
[330898229,1719929440164,-500.0,0.00015422,2]
[330898231,1719929440175,-1313.87,0.00015422,2]
[330898233,1719929440189,-499.95240066,0.00015422,2]
[330898235,1719929440199,-828.43,0.00015422,2]
[330898237,1719929440209,-500.0,0.00015422,2]
[330898239,1719929440219,-500.0,0.00015422,2]
[330898241,1719929440228,-151.9,0.00015422,2]
[330898243,1719929440238,-1274.49,0.00015422,2]
[330898245,1719929440248,-2912.82,0.00015422,2]
[330898247,1719929440257,-1324.25,0.00015422,2]
[330898249,1719929440268,-761.88,0.00015422,2]
[330898251,1719929440278,-500.0,0.00015422,2]
[330898253,1719929440288,-809.77,0.00015422,2]
[330898255,1719929440298,-761.07,0.00015422,2]
[330898257,1719929440307,-547.9,0.00015422,2]
[330898259,1719929440317,-2215.39,0.00015422,2]
[330898262,1719929440327,-3533.93,0.00015422,2]
[330898265,1719929440336,-500.0,0.00015422,2]
[330898267,1719929440346,-151.0,0.00015422,2]
[330898269,1719929440356,-151.0,0.00015422,2]
[330898272,1719929440371,-13667.18,0.00015422,2]
[330898275,1719929440380,-500.0,0.00015422,2]
[330898276,1719929440389,-500.0,0.00015422,2]
[330898278,1719929440400,-1869.1,0.00015422,2]
[330898280,1719929440411,-500.0,0.00015422,2]
[330898282,1719929440421,-151.0,0.00015422,2]
[330898283,1719929440432,-151.0,0.00015422,2]
[330898285,1719929440443,-151.0,0.00015422,2]
[330898287,1719929440454,-3041.71,0.00015422,2]
[330898288,1719929440466,-500.0,0.00015423,2]
[330898289,1719929440476,-500.0,0.00015423,2]
[330898290,1719929440486,-500.0,0.00015423,2]
[330898291,1719929440495,-500.0,0.00015423,2]
[330898292,1719929440506,-500.0,0.00015423,2]
[330898293,1719929440515,-500.0,0.00015423,2]
[330898294,1719929440525,-500.0,0.00015423,2]
[330898295,1719929440536,-500.0,0.00015423,2]
[330898296,1719929440546,-500.0,0.00015423,2]
[330898297,1719929440555,-500.0,0.00015423,2]
[330898298,1719929440565,-707.69,0.00015423,2]
[330898299,1719929440575,-500.00930369,0.00015423,2]
[330898301,1719929440584,-500.0,0.00015423,2]
[330898303,1719929440594,-382.69751023,0.00015423,2]
[330898305,1719929440603,-500.0,0.00015423,2]
[330898307,1719929440612,-500.0,0.00015423,2]
[330898308,1719929440622,-200.77325294,0.00015423,2]
[330898311,1719929440632,-500.0,0.00015423,2]
[330898313,1719929440644,-501.20225164,0.00015423,2]
[330898315,1719929440654,-500.0,0.00015423,2]
[330898317,1719929440664,-598.26,0.00015423,2]
[330898319,1719929440674,-500.0,0.00015423,2]
[330898320,1719929440687,-501.70799239,0.00015423,2]
[330898322,1719929440697,-912.11,0.00015423,2]
[330898324,1719929440706,-503.25470798,0.00015423,2]
[330898326,1719929440716,-334.97790333,0.00015423,2]
[330898329,1719929440728,-165.02209667,0.00015423,2]
[330898331,1719929440738,-500.0,0.00015423,2]
[330898333,1719929440748,-478.90473165,0.00015423,2]
[330898335,1719929440758,-503.35961135,0.00015423,2]
[330898337,1719929440767,-500.0,0.00015423,2]
[330898339,1719929440777,-500.0,0.00015423,2]
[330898341,1719929440787,-500.0,0.00015423,2]
[330898343,1719929440796,-8.05053782,0.00015423,2]
[330898345,1719929440807,-580.01946218,0.00015423,2]
[330898347,1719929440817,-421.62563866,0.00015423,2]
[330898386,1719929441187,-184.00436134,0.00015423,2]
[330898388,1719929441197,-747.11,0.00015423,2]
[330898390,1719929441206,-272.91960665,0.00015423,2]
[330898392,1719929441215,-500.0,0.00015423,2]
[330898394,1719929441224,-500.0,0.00015423,2]
[330898396,1719929441233,-500.0,0.00015423,2]
[330898397,1719929441242,-500.0,0.00015423,2]
[330898398,1719929441252,-151.0,0.00015423,2]
[330898399,1719929441261,-151.0,0.00015423,2]
[330898400,1719929441270,-151.0,0.00015423,2]
[330898401,1719929441279,-151.0,0.00015423,2]
[330898402,1719929441288,-613.83,0.00015423,2]
[330898403,1719929441297,-500.0,0.00015423,2]
[330898404,1719929441307,-286.43063471,0.00015423,2]
[330898405,1719929441317,-111.67773148,0.00015423,2]
[330898543,1719929446756,-531.82036901,0.00014999,2]
[330898544,1719929446766,-225.97470164,0.00014999,2]
[330898545,1719929446777,-708.1492886,0.00014999,2]
[330898546,1719929446787,-388.32226852,0.00015423,2]
[330898547,1719929446796,-500.0,0.00015423,2]
[330898548,1719929446805,-500.0,0.00015423,2]
[330898549,1719929446814,-500.0,0.00015423,2]
[330898550,1719929446824,-500.0,0.00015423,2]
[330898551,1719929446833,-544.95,0.00015423,2]
[330898552,1719929446843,-594.89,0.00015423,2]
[330898553,1719929446853,-500.0,0.00015423,2]
[330898554,1719929446862,-675.29,0.00015423,2]
[330898555,1719929446871,-500.0,0.00015423,2]
[330898556,1719929446881,-35.17741703,0.00015423,2]
[330898557,1719929479517,207.88,0.00010959,2]
[330898558,1719929500256,173.23,0.00010959,2]
[330898559,1719929510871,866.17,0.00010959,2]
[330898560,1719929542696,154.86836189,0.00010959,2]
[330898561,1719929577359,208.80469015,9.999e-05,2]
[330898562,1719929599257,509.91756708,9.999e-05,2]
[330898563,1719929602449,302.2671597,9.999e-05,2]
[330898564,1719929604216,154.86836189,0.00013283,2]
[330898565,1719929622170,484.78656127,9.999e-05,2]
[330898566,1719929627472,155.70781236,9.999e-05,2]
[330898567,1719929638417,155.12031434,9.999e-05,2]
[330898568,1719929645085,416.9731952,9.999e-05,2]
[330898569,1719929655277,509.91756708,0.0001212,2]
[330898570,1719929659198,225.68568275,0.0001212,2]
[330898571,1719929666877,154.86836189,9.999e-05,2]
[330898572,1719929668358,1086.852493,9.999e-05,2]
[330898573,1719929683312,306.29320601,9.999e-05,2]
[330898574,1719929687553,154.86836189,9.999e-05,2]
[330898575,1719929690900,507.30841652,9.999e-05,2]
[330898576,1719929702271,154.89860243,9.999e-05,2]
[330898577,1719929704170,202.77911483,9.999e-05,2]
[330898578,1719929704566,154.86836189,9.999e-05,2]
[330898580,1719929719098,155.44948349,9.999e-05,2]
[330898581,1719929731641,1000.0,0.00014,3]
[330898582,1719929732469,182.46691096,9.999e-05,2]
[330898583,1719929735338,1000.0,0.00014,4]
[330898584,1719929736091,180.82502493,9.999e-05,2]
[330898585,1719929739027,1000.0,0.00014,5]
[330898586,1719929760843,2123.95279144,0.0001212,2]
[330898587,1719929764376,667.40563611,0.0001212,2]
[330898591,1719929767952,158.10762138,9.999e-05,2]
[330898592,1719929772383,208.37564863,0.0001212,2]
[330898593,1719929774337,509.91756708,9.999e-05,2]
[330898594,1719929776636,1313.011853,0.0001212,2]
[330898595,1719929776713,182.5470397,9.999e-05,2]
[330898596,1719929778982,159.87944599,9.999e-05,2]
[330898597,1719929785206,1914.02350809,0.0001212,2]
[330898598,1719929792882,210.0942761,9.999e-05,2]
[330898599,1719929797588,264.44881433,9.999e-05,2]
[330898600,1719929800349,10562.28786365,0.0001212,2]
[330898601,1719929805265,496.88522416,0.0001212,2]
[330898602,1719929807737,2167.26101472,0.0001212,2]
[330898603,1719929807956,158.10762138,0.0001212,2]
[330898604,1719929812214,182.5470397,0.0001212,2]
[330898605,1719929826310,509.91756708,0.0001212,2]
[330898606,1719929869530,155.38835835,9.999e-05,2]
[330898607,1719929912114,204.26,0.00010959,2]
[330898608,1719929916452,158.10762138,9.999e-05,2]
[330898609,1719929922270,164.81209326,9.999e-05,2]
[330898610,1719929926266,246.34721627,9.999e-05,2]
[330898611,1719929934810,509.91756708,9.999e-05,2]
[330898612,1719929947903,154.86836189,9.999e-05,2]
[330898613,1719929954518,170.21,0.00010959,2]
[330898614,1719929956477,158.10762138,0.0001212,2]
[330898615,1719929965032,851.09,0.00010959,2]
[330898616,1719929970296,509.91756708,0.0001212,2]
[330898617,1719929999401,154.86836189,0.0001212,2]
[330898618,1719930006478,209.48333531,0.0001212,2]
[330898622,1719930044760,229.187955,0.00013725,2]
[330898623,1719930054697,206.42529152,9.999e-05,2]
[330898625,1719930075846,509.91756708,9.999e-05,2]
[330898626,1719930122346,345.23334499,0.0001212,2]
[330898627,1719930137926,194.02711887,9.999e-05,2]
[330898628,1719930169262,664.62074298,0.0001212,2]
[330898631,1719930302917,155.00269854,9.999e-05,2]
[330898632,1719930348004,156.47561045,9.999e-05,2]
[330898633,1719930348153,222.60927015,0.0001212,2]
[330898634,1719930365017,6112.67615244,0.00013779,2]
[330898635,1719930365046,18787.32384756,0.00013779,2]
[330898638,1719930540531,2842.7317801,0.00013996,2]
[330898639,1719930547258,-176.14713324,0.00014898,2]
[330898641,1719930547288,-300.0,0.00014989,2]
[330898643,1719930547316,-99.14893251,0.00014989,2]
[330898644,1719930547348,-200.85106749,0.00014989,2]
[330898645,1719930547375,-116.49995775,0.0001499,2]
[330898646,1719930547412,-575.29606575,0.0001499,2]
[330898650,1719930572524,-604.65492889,0.0001499,2]
[330898651,1719930572557,-457.08027819,0.0001499,2]
[330898652,1719930572588,-604.65492889,0.0001499,2]
[330898653,1719930592516,509.46,0.00010959,2]
[330898654,1719930597576,-637.98273161,0.0001499,2]
[330898656,1719930597640,-637.98273161,0.0001499,2]
[330898670,1719930634206,520.1,0.00010959,2]
[330898691,1719930636114,-229.187955,0.00014047,2]
[330898693,1719930636123,-154.86836189,0.00014794,2]
[330898695,1719930636133,-2051.82682141,0.0001499,2]
[330898697,1719930636145,-321.20253342,0.0001499,2]
[330898699,1719930636156,-701.342,0.0001499,2]
[330898732,1719930639475,-2003.52736175,0.0001499,2]
[330898733,1719930639489,-1287.94966073,0.0001499,2]
[330898734,1719930639500,-500.0,0.00014997,2]
[330898735,1719930639509,-500.0,0.00014997,2]
[330898736,1719930639518,-500.0,0.00014997,2]
[330898737,1719930639528,-185.87374435,0.00014997,2]
[330898738,1719930639540,-314.12625565,0.00014997,2]
[330898739,1719930639550,-117.17194579,0.00014998,2]
[330898895,1719930643819,-11014.05198449,0.00014998,2]
[330898897,1719930643829,-938.47,0.00014998,2]
[330898899,1719930643839,-500.0,0.00014998,2]
[330898901,1719930643850,-347.27317267,0.00014998,2]
[330898903,1719930643860,-500.0,0.00014998,2]
[330898905,1719930643869,-546.64,0.00014998,2]
[330898907,1719930643879,-1462.22,0.00014998,2]
[330898909,1719930643888,-500.0,0.00014998,2]
[330898911,1719930643897,-839.87,0.00014998,2]
[330898913,1719930643907,-1628.54,0.00014998,2]
[330898915,1719930643916,-2292.85,0.00014998,2]
[330898917,1719930643925,-500.0,0.00014998,2]
[330898919,1719930643934,-500.0,0.00014998,2]
[330898921,1719930643944,-500.0,0.00014998,2]
[330898923,1719930643953,-868.92,0.00014998,2]
[330898925,1719930643963,-500.0,0.00014998,2]
[330898927,1719930643972,-500.0,0.00014998,2]
[330898929,1719930643983,-4564.4,0.00014998,2]
[330898932,1719930643992,-959.31242303,0.00014998,2]
[330899493,1719930649408,283.06585599,0.00013283,2]
[330899878,1719930653389,293.20606944,0.00013283,2]
[330900778,1719930667687,181.53915781,0.00014,2]
[330900781,1719930754702,1400.26910057,0.00014,2]
[330900782,1719930871125,154.86619646,0.00014,2]
[330900783,1719930885315,154.85288975,9.999e-05,2]
[330900784,1719930900311,154.85288975,9.999e-05,2]
[330900788,1719930947831,155.017777,0.0001212,2]
[330900789,1719930955802,182.41069143,9.999e-05,2]
[330900790,1719930960224,401.65252924,9.999e-05,2]
[330900793,1719931005939,667.40563611,9.999e-05,2]
[330900799,1719931017665,24900.0,0.00013951,2]
[330900800,1719931017837,180.17249901,0.0001212,2]
[330900801,1719931022560,155.21649304,9.999e-05,2]
[330900805,1719931089773,412.40789044,9.999e-05,2]
[330900807,1719931122311,414.1395065,0.0001212,2]
[330900808,1719931134236,458.82307956,0.0001212,2]
[330900811,1719931143170,154.85288975,0.0001212,2]
[330900823,1719931160039,154.92341564,0.0001212,2]
[330900824,1719931162743,159.71453487,0.0001212,2]
[330900827,1719931236227,208.78500633,9.999e-05,2]
[330900828,1719931237466,19316.54266155,0.0001212,2]
[330900829,1719931241580,154.85288975,9.999e-05,2]
[330900830,1719931247390,776.11834176,9.999e-05,2]
[330900831,1719931257653,154.94486448,9.999e-05,2]
[330900832,1719931260965,412.30717912,9.999e-05,2]
[330900833,1719931274291,155.4353695,9.999e-05,2]
[330900834,1719931289094,154.97314253,0.0001212,2]
[330900852,1719931446485,191.50773602,9.999e-05,2]
[330900854,1719931464798,412.30717912,9.999e-05,2]
[330900855,1719931489592,453.00397169,9.999e-05,2]
[330900857,1719931496383,155.30668306,0.0001212,2]
[330900858,1719931500636,155.62769865,9.999e-05,2]
[330900859,1719931536081,199.8599046,0.00013878,2]
[330900860,1719931548369,24900.0,0.00013867,2]
[330900861,1719931552315,412.30717912,0.0001212,2]
[330900862,1719931595725,237.7961625,0.00013862,2]
[330900864,1719931687909,250.0,0.00013883,2]
[330900866,1719931747539,154.45,0.00014,2]
[330900872,1719931809775,-150.0,0.00014619,2]
[330900874,1719931809804,-476.99824095,0.00014672,2]
[330900876,1719931809862,-626.99824095,0.00014672,2]
[330900878,1719931809944,-533.17721936,0.00014672,2]
[330900944,1719931834954,-1243.66,0.00014672,2]
[330901021,1719931841210,-528.16653539,0.00014672,2]
[330901022,1719931841222,-1002.68949999,0.00014672,2]
[330901023,1719931841234,-876.2401043,0.00014672,2]
[330901024,1719931841243,-300.0,0.00014793,2]
[330901025,1719931841253,-300.0,0.00014793,2]
[330901026,1719931841262,-520.28673569,0.00014794,2]
[330901033,1719931841367,-434.22999995,0.00014794,2]
[330901035,1719931841378,-9607.77112801,0.00014794,2]
[330901037,1719931841387,-2951.43447409,0.00014895,2]
[330901039,1719931841397,-2951.43447406,0.00014896,2]
[330901041,1719931841407,-2951.43447406,0.00014896,2]
[330901043,1719931841416,-944.89929312,0.00014897,2]
[330901057,1719931841746,-1203.63874975,0.00014897,2]
[330901058,1719931841757,-802.89643119,0.00014897,2]
[330901059,1719931841767,-2951.43447406,0.00014897,2]
[330901060,1719931841777,-500.0,0.00014993,2]
[330901061,1719931841786,-500.0,0.00014994,2]
[330901062,1719931841795,-961.07,0.00014994,2]
[330901063,1719931841804,-2616.28,0.00014994,2]
[330901064,1719931841813,-500.0,0.00014994,2]
[330901065,1719931841823,-17449.3,0.00014994,2]
[330901066,1719931841832,-1879.89,0.00014994,2]
[330901067,1719931841841,-2983.2,0.00014994,2]
[330901068,1719931841851,-407.64193561,0.00014995,2]
[330901069,1719931841860,-500.0,0.00014995,2]
[330901070,1719931841869,-441.51,0.00014995,2]
[330901071,1719931841879,-500.0,0.00014995,2]
[330901072,1719931841888,-436.15,0.00014995,2]